[Event "*** Titled Tuesday Blitz"]
[Site "Chess.com"]
[Date "2019.03.05"]
[Round "1"]
[White "INLOVEWITHF"]
[Black "DrVitman"]
[Result "0-1"]
[WhiteElo "2298"]
[BlackElo "2653"]
[TimeControl "180+2"]
[EndTime "13:10:58 PST"]
[Termination "DrVitman won by checkmate"]

1. e4 {[%clk 0:03:01.2]} 1... c5 {[%clk 0:02:59.6]} 2. Nf3 {[%clk 0:03:00.5]}
2... Nc6 {[%clk 0:03:00.8]} 3. d4 {[%clk 0:03:00.8]} 3... cxd4 {[%clk
0:03:02.7]} 4. Nxd4 {[%clk 0:03:02.2]} 4... e5 {[%clk 0:03:04]} 5. Nb5 {[%clk
0:03:02.8]} 5... a6 {[%clk 0:03:05.4]} 6. Nd6+ {[%clk 0:03:03]} 6... Bxd6 {[%clk
0:03:06.6]} 7. Qxd6 {[%clk 0:03:04.6]} 7... Qe7 {[%clk 0:03:08]} 8. Qxe7+ {[%clk
0:03:03.9]} 8... Ngxe7 {[%clk 0:03:09.4]} 9. Nc3 {[%clk 0:03:00.8]} 9... d5
{[%clk 0:03:09.6]} 10. exd5 {[%clk 0:02:58.4]} 10... Nb4 {[%clk 0:03:09.9]} 11.
Bd3 {[%clk 0:02:48.9]} 11... Nxd3+ {[%clk 0:03:09.8]} 12. cxd3 {[%clk
0:02:50.4]} 12... Bf5 {[%clk 0:03:10.9]} 13. f4 {[%clk 0:02:42.2]} 13... O-O-O
{[%clk 0:02:55.7]} 14. fxe5 {[%clk 0:02:39.2]} 14... Nxd5 {[%clk 0:02:56.7]} 15.
O-O {[%clk 0:02:35.4]} 15... Bg6 {[%clk 0:02:32.3]} 16. Bg5 {[%clk 0:02:30.2]}
16... Rd7 {[%clk 0:02:28.2]} 17. d4 {[%clk 0:02:24.5]} 17... Nxc3 {[%clk
0:01:59.9]} 18. bxc3 {[%clk 0:02:24.6]} 18... Kc7 {[%clk 0:02:00.5]} 19. Rac1
{[%clk 0:02:12.2]} 19... Kc6 {[%clk 0:01:59.9]} 20. Rfd1 {[%clk 0:02:11.5]}
20... b5 {[%clk 0:02:00]} 21. c4 {[%clk 0:02:11.1]} 21... bxc4 {[%clk
0:01:50.5]} 22. Rxc4+ {[%clk 0:02:13]} 22... Kd5 {[%clk 0:01:45.6]} 23. Ra4
{[%clk 0:01:49.6]} 23... Rb8 {[%clk 0:01:32.8]} 24. Rc1 {[%clk 0:01:44.1]} 24...
Rb2 {[%clk 0:01:18.6]} 25. Rxa6 {[%clk 0:01:28.8]} 25... Be4 {[%clk 0:00:55.8]}
26. Rd6+ {[%clk 0:00:48]} 26... Rxd6 {[%clk 0:00:54.9]} 27. exd6 {[%clk
0:00:49.9]} 27... Kxd6 {[%clk 0:00:39.9]} 28. Bf4+ {[%clk 0:00:47]} 28... Ke6
{[%clk 0:00:34.6]} 29. Re1 {[%clk 0:00:25.2]} 29... Kd5 {[%clk 0:00:34.8]} 30.
Be5 {[%clk 0:00:23.4]} 30... f6 {[%clk 0:00:33.6]} 31. Bg3 {[%clk 0:00:21.2]}
31... Rxg2+ {[%clk 0:00:32.8]} 32. Kf1 {[%clk 0:00:22.4]} 32... Rxa2 {[%clk
0:00:33.3]} 33. Rc1 {[%clk 0:00:23.9]} 33... g5 {[%clk 0:00:27.2]} 34. Rc7
{[%clk 0:00:22.8]} 34... h5 {[%clk 0:00:26.7]} 35. Rd7+ {[%clk 0:00:23.2]} 35...
Kc4 {[%clk 0:00:27.8]} 36. Rf7 {[%clk 0:00:22.3]} 36... h4 {[%clk 0:00:27.3]}
37. Bc7 {[%clk 0:00:23.2]} 37... f5 {[%clk 0:00:25.6]} 38. Bd8 {[%clk
0:00:20.8]} 38... g4 {[%clk 0:00:16.2]} 39. Bxh4 {[%clk 0:00:20.8]} 39... Rxh2
{[%clk 0:00:17.6]} 40. Bg3 {[%clk 0:00:21.2]} 40... Rh3 {[%clk 0:00:18.4]} 41.
Be5 {[%clk 0:00:22.1]} 41... Kd3 {[%clk 0:00:16.4]} 42. Ra7 {[%clk 0:00:21.9]}
42... Rf3+ {[%clk 0:00:17.1]} 43. Kg1 {[%clk 0:00:20.6]} 43... Kc4 {[%clk
0:00:15.6]} 44. Ra4+ {[%clk 0:00:19.5]} 44... Kb5 {[%clk 0:00:16.5]} 45. Ra2
{[%clk 0:00:17.6]} 45... g3 {[%clk 0:00:17.2]} 46. Rg2 {[%clk 0:00:14.9]} 46...
f4 {[%clk 0:00:16.9]} 47. Bxf4 {[%clk 0:00:15.6]} 47... Rxf4 {[%clk 0:00:18]}
48. Rxg3 {[%clk 0:00:17.1]} 48... Kc4 {[%clk 0:00:19.3]} 49. Rg8 {[%clk
0:00:13.1]} 49... Kxd4 {[%clk 0:00:20.2]} 50. Rd8+ {[%clk 0:00:13.9]} 50... Ke3
{[%clk 0:00:20.8]} 51. Kh2 {[%clk 0:00:12.8]} 51... Rg4 {[%clk 0:00:20.6]} 52.
Rb8 {[%clk 0:00:11.6]} 52... Rg7 {[%clk 0:00:16.1]} 53. Re8 {[%clk 0:00:11.4]}
53... Kf4 {[%clk 0:00:10.6]} 54. Rf8+ {[%clk 0:00:10.7]} 54... Bf5 {[%clk
0:00:11]} 55. Rf6 {[%clk 0:00:10.4]} 55... Ke4 {[%clk 0:00:10.7]} 56. Rf8 {[%clk
0:00:10.9]} 56... Rh7+ {[%clk 0:00:09.8]} 57. Kg3 {[%clk 0:00:11.5]} 57... Rh3+
{[%clk 0:00:10.3]} 58. Kg2 {[%clk 0:00:12.2]} 58... Ra3 {[%clk 0:00:11.1]} 59.
Re8+ {[%clk 0:00:11.5]} 59... Kf4 {[%clk 0:00:12]} 60. Rf8 {[%clk 0:00:12.6]}
60... Ra2+ {[%clk 0:00:12.5]} 61. Kg1 {[%clk 0:00:13.7]} 61... Rb2 {[%clk
0:00:08.7]} 62. Rf7 {[%clk 0:00:12.6]} 62... Kg4 {[%clk 0:00:09]} 63. Kf1 {[%clk
0:00:11.6]} 63... Bd3+ {[%clk 0:00:07.6]} 64. Ke1 {[%clk 0:00:12.4]} 64... Be4
{[%clk 0:00:07.1]} 65. Rf6 {[%clk 0:00:11.1]} 65... Bf5 {[%clk 0:00:08.1]} 66.
Rf8 {[%clk 0:00:11.5]} 66... Kf4 {[%clk 0:00:08.6]} 67. Re8 {[%clk 0:00:12.5]}
67... Be4 {[%clk 0:00:09.3]} 68. Re7 {[%clk 0:00:12]} 68... Ke3 {[%clk 0:00:10]}
69. Kd1 {[%clk 0:00:13]} 69... Rb1# {[%clk 0:00:10.6]} 0-1

[Event "*** Titled Tuesday Blitz"]
[Site "Chess.com"]
[Date "2019.03.05"]
[Round "1"]
[White "chenrip"]
[Black "PulpanJ"]
[Result "1-0"]
[WhiteElo "2328"]
[BlackElo "2668"]
[TimeControl "180+2"]
[EndTime "13:11:03 PST"]
[Termination "chenrip won on time"]

1. e4 {[%clk 0:03:01.9]} 1... e5 {[%clk 0:03:00.1]} 2. Nf3 {[%clk 0:03:02.3]}
2... Nc6 {[%clk 0:03:01.2]} 3. d4 {[%clk 0:03:03.3]} 3... exd4 {[%clk
0:03:01.8]} 4. Nxd4 {[%clk 0:03:04.5]} 4... Bb4+ {[%clk 0:03:02.7]} 5. c3 {[%clk
0:03:05.4]} 5... Bc5 {[%clk 0:03:03.6]} 6. Be3 {[%clk 0:03:07.1]} 6... Bb6
{[%clk 0:03:04.5]} 7. Be2 {[%clk 0:03:08.2]} 7... Nf6 {[%clk 0:03:05.1]} 8. Bf3
{[%clk 0:03:07.2]} 8... Ne5 {[%clk 0:02:46.4]} 9. Nd2 {[%clk 0:02:59.7]} 9...
Nxf3+ {[%clk 0:02:45.8]} 10. gxf3 {[%clk 0:03:00.5]} 10... d5 {[%clk 0:02:40.7]}
11. e5 {[%clk 0:02:56.1]} 11... Nd7 {[%clk 0:02:32.8]} 12. f4 {[%clk 0:02:52.2]}
12... Nc5 {[%clk 0:02:29.7]} 13. Qe2 {[%clk 0:02:45]} 13... Qe7 {[%clk
0:02:24.7]} 14. O-O-O {[%clk 0:02:42.6]} 14... Bd7 {[%clk 0:02:19.4]} 15. Kb1
{[%clk 0:02:43.1]} 15... O-O-O {[%clk 0:02:19.1]} 16. N2b3 {[%clk 0:02:43.9]}
16... Nxb3 {[%clk 0:02:18.5]} 17. axb3 {[%clk 0:02:40.5]} 17... a6 {[%clk
0:02:12]} 18. Rhg1 {[%clk 0:02:38.7]} 18... c5 {[%clk 0:02:09.9]} 19. Nf3 {[%clk
0:02:33.5]} 19... Bf5+ {[%clk 0:02:11.2]} 20. Ka2 {[%clk 0:02:31.8]} 20... g6
{[%clk 0:02:13.1]} 21. b4 {[%clk 0:01:44]} 21... Kb8 {[%clk 0:00:47.8]} 22. bxc5
{[%clk 0:01:42.9]} 22... Bxc5 {[%clk 0:00:46.9]} 23. Bxc5 {[%clk 0:01:42.3]}
23... Qxc5 {[%clk 0:00:48.8]} 24. Rd4 {[%clk 0:01:43]} 24... Qa5+ {[%clk
0:00:41.6]} 25. Kb3 {[%clk 0:01:43.7]} 25... Rc8 {[%clk 0:00:42.2]} 26. Rb4
{[%clk 0:01:41.6]} 26... Rc4 {[%clk 0:00:42.3]} 27. Nd4 {[%clk 0:01:36.7]} 27...
Bd7 {[%clk 0:00:37.3]} 28. Rxc4 {[%clk 0:01:32.4]} 28... dxc4+ {[%clk
0:00:39.2]} 29. Qxc4 {[%clk 0:01:30.1]} 29... Rc8 {[%clk 0:00:39.6]} 30. Qb4
{[%clk 0:01:30]} 30... Qd5+ {[%clk 0:00:40.4]} 31. Kc2 {[%clk 0:01:21.7]} 31...
Ka8 {[%clk 0:00:32.5]} 32. Re1 {[%clk 0:01:16.3]} 32... Rc4 {[%clk 0:00:28.8]}
33. Qd6 {[%clk 0:01:04.8]} 33... Ba4+ {[%clk 0:00:11.9]} 34. b3 {[%clk
0:00:56.3]} 34... Rxd4 {[%clk 0:00:13.2]} 35. Qxd5 {[%clk 0:00:49]} 35... Rxd5
{[%clk 0:00:15.1]} 36. bxa4 {[%clk 0:00:50.2]} 36... Kb8 {[%clk 0:00:13.5]} 37.
Rd1 {[%clk 0:00:44.2]} 37... Ra5 {[%clk 0:00:14.1]} 38. Kb3 {[%clk 0:00:43.3]}
38... b5 {[%clk 0:00:15]} 39. Rd4 {[%clk 0:00:35.8]} 39... Kc7 {[%clk
0:00:12.6]} 40. axb5 {[%clk 0:00:32.2]} 40... axb5 {[%clk 0:00:12.9]} 41. Rd5
{[%clk 0:00:21.3]} 41... h5 {[%clk 0:00:14]} 42. h4 {[%clk 0:00:21.5]} 42... Kc6
{[%clk 0:00:14.4]} 43. Rd6+ {[%clk 0:00:22.4]} 43... Kc7 {[%clk 0:00:15.8]} 44.
Rf6 {[%clk 0:00:23.8]} 44... Ra1 {[%clk 0:00:13.9]} 45. Rxf7+ {[%clk 0:00:25.1]}
45... Kc6 {[%clk 0:00:15.8]} 46. Rf6+ {[%clk 0:00:26.3]} 46... Kd5 {[%clk
0:00:15.5]} 47. Rxg6 {[%clk 0:00:25.2]} 47... Rf1 {[%clk 0:00:16.3]} 48. Rd6+
{[%clk 0:00:25.7]} 48... Ke4 {[%clk 0:00:15.4]} 49. e6 {[%clk 0:00:26.6]} 49...
Kxf4 {[%clk 0:00:14.9]} 50. Rd5 {[%clk 0:00:27.5]} 50... Re1 {[%clk 0:00:15.5]}
51. Rxh5 {[%clk 0:00:28.2]} 51... Rxe6 {[%clk 0:00:09.2]} 52. Rxb5 {[%clk
0:00:29.6]} 52... Kg4 {[%clk 0:00:09.5]} 53. Rb4+ {[%clk 0:00:30.8]} 53... Kf3
{[%clk 0:00:08.8]} 54. Rd4 {[%clk 0:00:31.8]} 54... Rb6+ {[%clk 0:00:08.7]} 55.
Kc4 {[%clk 0:00:32.3]} 55... Kxf2 {[%clk 0:00:09.6]} 56. Kc5 {[%clk 0:00:33.5]}
56... Rh6 {[%clk 0:00:10.7]} 57. c4 {[%clk 0:00:32.6]} 57... Ke3 {[%clk
0:00:12.6]} 58. Rd5 {[%clk 0:00:27.1]} 58... Rxh4 {[%clk 0:00:12.8]} 59. Kb5
{[%clk 0:00:27.7]} 59... Ke4 {[%clk 0:00:14.1]} 60. Rg5 {[%clk 0:00:27.2]} 60...
Kf4 {[%clk 0:00:13]} 61. Rd5 {[%clk 0:00:27.1]} 61... Ke4 {[%clk 0:00:14.4]} 62.
Rd1 {[%clk 0:00:26.4]} 62... Rh2 {[%clk 0:00:12.3]} 63. c5 {[%clk 0:00:27.6]}
63... Rb2+ {[%clk 0:00:13.3]} 64. Kc6 {[%clk 0:00:29.1]} 64... Ke5 {[%clk
0:00:15.2]} 65. Kc7 {[%clk 0:00:29.6]} 65... Ke6 {[%clk 0:00:16.4]} 66. c6
{[%clk 0:00:30.4]} 66... Ke7 {[%clk 0:00:17.8]} 67. Re1+ {[%clk 0:00:31.3]}
67... Kf8 {[%clk 0:00:19.1]} 68. Kd7 {[%clk 0:00:32.5]} 68... Rd2+ {[%clk
0:00:19.8]} 69. Kc8 {[%clk 0:00:33.8]} 69... Rc2 {[%clk 0:00:21.1]} 70. c7
{[%clk 0:00:35]} 70... Rc3 {[%clk 0:00:23]} 71. Re5 {[%clk 0:00:35.5]} 71... Kf7
{[%clk 0:00:23.6]} 72. Kb7 {[%clk 0:00:35.2]} 72... Kf6 {[%clk 0:00:19.9]} 73.
Rb5 {[%clk 0:00:35.8]} 73... Rb3 {[%clk 0:00:15.2]} 74. Rxb3 {[%clk 0:00:36.3]}
74... Ke7 {[%clk 0:00:12.4]} 75. c8=Q {[%clk 0:00:37.2]} 75... Kd6 {[%clk
0:00:02.3]} 76. Rd3+ {[%clk 0:00:37.7]} 1-0

[Event "*** Titled Tuesday Blitz"]
[Site "Chess.com"]
[Date "2019.03.05"]
[Round "1"]
[White "eljanov"]
[Black "WPWPWP-2015"]
[Result "1-0"]
[WhiteElo "2755"]
[BlackElo "2393"]
[TimeControl "180+2"]
[EndTime "13:11:26 PST"]
[Termination "eljanov won on time"]

1. d4 {[%clk 0:02:59.6]} 1... Nf6 {[%clk 0:02:59.4]} 2. c4 {[%clk 0:02:59.8]}
2... c6 {[%clk 0:03:00.1]} 3. Bf4 {[%clk 0:02:59]} 3... d5 {[%clk 0:03:00.5]} 4.
e3 {[%clk 0:02:59.5]} 4... Nbd7 {[%clk 0:02:58.2]} 5. Nc3 {[%clk 0:02:57.1]}
5... a6 {[%clk 0:02:58.5]} 6. Nf3 {[%clk 0:02:54.3]} 6... e6 {[%clk 0:02:58.9]}
7. h3 {[%clk 0:02:54.7]} 7... Bb4 {[%clk 0:02:59.2]} 8. Qb3 {[%clk 0:02:51.2]}
8... Be7 {[%clk 0:02:52.3]} 9. cxd5 {[%clk 0:02:45.7]} 9... exd5 {[%clk
0:02:52.5]} 10. Bd3 {[%clk 0:02:45.7]} 10... O-O {[%clk 0:02:52.7]} 11. O-O
{[%clk 0:02:47.2]} 11... Re8 {[%clk 0:02:50.1]} 12. Qc2 {[%clk 0:02:43]} 12...
h6 {[%clk 0:02:44.6]} 13. Rab1 {[%clk 0:02:40.4]} 13... a5 {[%clk 0:02:38]} 14.
a3 {[%clk 0:02:40.5]} 14... Nf8 {[%clk 0:02:34.6]} 15. b4 {[%clk 0:02:40.9]}
15... axb4 {[%clk 0:02:35.1]} 16. axb4 {[%clk 0:02:41.8]} 16... Ne6 {[%clk
0:02:34]} 17. Bh2 {[%clk 0:02:39.6]} 17... Bf8 {[%clk 0:02:32.1]} 18. Ne5 {[%clk
0:02:38]} 18... Qe7 {[%clk 0:02:02.5]} 19. Rfc1 {[%clk 0:02:27.7]} 19... Ng5
{[%clk 0:01:47.8]} 20. b5 {[%clk 0:02:17.9]} 20... c5 {[%clk 0:01:45.7]} 21.
dxc5 {[%clk 0:02:06.1]} 21... Qxc5 {[%clk 0:01:46.5]} 22. Qb3 {[%clk 0:01:46.5]}
22... Qa3 {[%clk 0:01:32.4]} 23. h4 {[%clk 0:01:30.1]} 23... Qxb3 {[%clk
0:01:23.9]} 24. Rxb3 {[%clk 0:01:32]} 24... Nge4 {[%clk 0:01:24.7]} 25. Nxe4
{[%clk 0:01:27.4]} 25... dxe4 {[%clk 0:01:21.7]} 26. Bc4 {[%clk 0:01:27.3]}
26... Be6 {[%clk 0:01:17.3]} 27. Bxe6 {[%clk 0:01:26.2]} 27... Rxe6 {[%clk
0:01:18.3]} 28. Nc4 {[%clk 0:01:16.6]} 28... Rc8 {[%clk 0:01:15.9]} 29. Rbc3
{[%clk 0:01:16.4]} 29... Bb4 {[%clk 0:01:13.7]} 30. R3c2 {[%clk 0:01:17]} 30...
Nd7 {[%clk 0:00:40.1]} 31. Bg3 {[%clk 0:01:01.4]} 31... f6 {[%clk 0:00:32]} 32.
Kf1 {[%clk 0:00:52.5]} 32... Nb6 {[%clk 0:00:27.2]} 33. Nxb6 {[%clk 0:00:44.4]}
33... Rxc2 {[%clk 0:00:27]} 34. Rxc2 {[%clk 0:00:43.5]} 34... Rxb6 {[%clk
0:00:28]} 35. Rb2 {[%clk 0:00:42.9]} 35... Bd6 {[%clk 0:00:26.3]} 36. Bxd6
{[%clk 0:00:40.6]} 36... Rxd6 {[%clk 0:00:27.3]} 37. g4 {[%clk 0:00:42.1]} 37...
h5 {[%clk 0:00:26.5]} 38. gxh5 {[%clk 0:00:41.4]} 38... Rd5 {[%clk 0:00:27.1]}
39. Kg2 {[%clk 0:00:36.5]} 39... Rxh5 {[%clk 0:00:26.8]} 40. Kg3 {[%clk
0:00:38]} 40... Re5 {[%clk 0:00:25.1]} 41. Kf4 {[%clk 0:00:37.4]} 41... Kf7
{[%clk 0:00:24.7]} 42. b6 {[%clk 0:00:36.2]} 42... Re6 {[%clk 0:00:23.4]} 43. h5
{[%clk 0:00:37.4]} 43... Kg8 {[%clk 0:00:23.9]} 44. Rb4 {[%clk 0:00:34.5]} 44...
Kh7 {[%clk 0:00:24.5]} 45. Kf5 {[%clk 0:00:29]} 45... Re5+ {[%clk 0:00:25.4]}
46. Kf4 {[%clk 0:00:29.8]} 46... Re6 {[%clk 0:00:26.4]} 47. Rxe4 {[%clk
0:00:25]} 47... Rxb6 {[%clk 0:00:27]} 48. Kg4 {[%clk 0:00:25.5]} 48... Rb1
{[%clk 0:00:25.1]} 49. f4 {[%clk 0:00:25]} 49... Rb5 {[%clk 0:00:24]} 50. Re8
{[%clk 0:00:24.5]} 50... Rb1 {[%clk 0:00:23.1]} 51. e4 {[%clk 0:00:25.6]} 51...
b5 {[%clk 0:00:22.6]} 52. Kf5 {[%clk 0:00:24.1]} 52... Rh1 {[%clk 0:00:20.3]}
53. e5 {[%clk 0:00:23.3]} 53... fxe5 {[%clk 0:00:19.3]} 54. fxe5 {[%clk
0:00:24.6]} 54... Rxh5+ {[%clk 0:00:18.6]} 55. Ke6 {[%clk 0:00:25.8]} 55... Rh1
{[%clk 0:00:16.7]} 56. Rb8 {[%clk 0:00:24.4]} 56... Rb1 {[%clk 0:00:16.8]} 57.
Kf7 {[%clk 0:00:25.7]} 57... g5 {[%clk 0:00:15.9]} 58. e6 {[%clk 0:00:27.1]}
58... Rf1+ {[%clk 0:00:16.7]} 59. Ke8 {[%clk 0:00:27]} 59... Kg6 {[%clk
0:00:13.9]} 60. Rxb5 {[%clk 0:00:25.5]} 60... g4 {[%clk 0:00:11.7]} 61. e7
{[%clk 0:00:26.3]} 61... Re1 {[%clk 0:00:08.1]} 62. Rb6+ {[%clk 0:00:23.3]}
62... Kg7 {[%clk 0:00:08.5]} 63. Rb4 {[%clk 0:00:24.2]} 63... Kf6 {[%clk
0:00:09.6]} 64. Rb6+ {[%clk 0:00:13.6]} 64... Kg7 {[%clk 0:00:09.9]} 65. Kd7
{[%clk 0:00:13.6]} 65... g3 {[%clk 0:00:05.4]} 66. Rb3 {[%clk 0:00:13.4]} 66...
Rd1+ {[%clk 0:00:05.7]} 67. Ke8 {[%clk 0:00:14.4]} 67... Kf6 {[%clk 0:00:04.2]}
68. Rf3+ {[%clk 0:00:15]} 68... Ke6 {[%clk 0:00:04.4]} 69. Rxg3 {[%clk
0:00:15.3]} 69... Ra1 {[%clk 0:00:05.1]} 70. Re3+ {[%clk 0:00:16.3]} 70... Kd6
{[%clk 0:00:05.8]} 71. Kf8 {[%clk 0:00:16.7]} 71... Rf1+ {[%clk 0:00:05.3]} 72.
Kg7 {[%clk 0:00:17.9]} 72... Rg1+ {[%clk 0:00:06]} 73. Kh6 {[%clk 0:00:19.1]}
73... Rh1+ {[%clk 0:00:05.3]} 74. Kg5 {[%clk 0:00:20.2]} 74... Rg1+ {[%clk
0:00:06.1]} 75. Kf4 {[%clk 0:00:21.2]} 75... Rf1+ {[%clk 0:00:04.1]} 76. Kg3
{[%clk 0:00:22.1]} 76... Rg1+ {[%clk 0:00:04.1]} 77. Kf2 {[%clk 0:00:22.9]}
77... Rg8 {[%clk 0:00:03.6]} 78. e8=Q {[%clk 0:00:24]} 1-0

[Event "*** Titled Tuesday Blitz"]
[Site "Chess.com"]
[Date "2019.03.05"]
[Round "1"]
[White "kingmonkey2006"]
[Black "GrandGlacier"]
[Result "1/2-1/2"]
[WhiteElo "2519"]
[BlackElo "2149"]
[TimeControl "180+2"]
[EndTime "13:11:38 PST"]
[Termination "Game drawn - insufficient material"]

1. b3 {[%clk 0:03:01.8]} 1... e5 {[%clk 0:03:00.2]} 2. Bb2 {[%clk 0:03:01.9]}
2... Nc6 {[%clk 0:03:01.7]} 3. e3 {[%clk 0:03:02.5]} 3... Nf6 {[%clk 0:03:03.1]}
4. Bb5 {[%clk 0:03:02.8]} 4... Bd6 {[%clk 0:03:04.5]} 5. Nf3 {[%clk 0:03:03]}
5... e4 {[%clk 0:02:57.6]} 6. Nd4 {[%clk 0:03:03.3]} 6... Nxd4 {[%clk
0:02:58.1]} 7. Bxd4 {[%clk 0:03:04]} 7... c6 {[%clk 0:02:57.9]} 8. Be2 {[%clk
0:03:04.2]} 8... Qe7 {[%clk 0:02:57.7]} 9. c4 {[%clk 0:03:03.6]} 9... Be5 {[%clk
0:02:58]} 10. Bxe5 {[%clk 0:03:03.5]} 10... Qxe5 {[%clk 0:02:58.7]} 11. Nc3
{[%clk 0:03:05.4]} 11... d5 {[%clk 0:02:58.6]} 12. cxd5 {[%clk 0:03:01]} 12...
cxd5 {[%clk 0:02:59.6]} 13. d4 {[%clk 0:02:42.7]} 13... exd3 {[%clk 0:02:58.2]}
14. Qxd3 {[%clk 0:02:42.8]} 14... O-O {[%clk 0:02:59]} 15. Rd1 {[%clk 0:02:40]}
15... Bf5 {[%clk 0:02:58.5]} 16. Qd4 {[%clk 0:02:40.5]} 16... Qxd4 {[%clk
0:02:45.8]} 17. Rxd4 {[%clk 0:02:40.4]} 17... Be6 {[%clk 0:02:47.1]} 18. Kd2
{[%clk 0:02:40.2]} 18... Rfc8 {[%clk 0:02:45.9]} 19. f3 {[%clk 0:02:40.2]} 19...
Rc5 {[%clk 0:02:42.9]} 20. Bd3 {[%clk 0:02:38.9]} 20... Rac8 {[%clk 0:02:42.4]}
21. Rc1 {[%clk 0:02:37]} 21... Nd7 {[%clk 0:02:25.5]} 22. f4 {[%clk 0:02:15.4]}
22... g6 {[%clk 0:02:21.9]} 23. Ne2 {[%clk 0:02:07]} 23... Rxc1 {[%clk 0:02:21]}
24. Nxc1 {[%clk 0:02:08.9]} 24... Nb8 {[%clk 0:02:21.9]} 25. Ne2 {[%clk
0:02:08.7]} 25... Nc6 {[%clk 0:02:22.7]} 26. Ra4 {[%clk 0:02:10.3]} 26... a6
{[%clk 0:02:07.5]} 27. Nd4 {[%clk 0:02:08.3]} 27... Ne7 {[%clk 0:01:50.5]} 28.
Rb4 {[%clk 0:02:05.1]} 28... Rc7 {[%clk 0:01:47.3]} 29. Rb6 {[%clk 0:02:03.7]}
29... Bd7 {[%clk 0:01:40.8]} 30. Rd6 {[%clk 0:02:00.3]} 30... Kf8 {[%clk
0:01:40.6]} 31. Be2 {[%clk 0:01:56]} 31... Ke8 {[%clk 0:01:33]} 32. Bf3 {[%clk
0:01:48.7]} 32... Rc5 {[%clk 0:01:33.1]} 33. b4 {[%clk 0:01:46.9]} 33... Rc4
{[%clk 0:01:32.1]} 34. a3 {[%clk 0:01:47.9]} 34... a5 {[%clk 0:01:27.3]} 35.
bxa5 {[%clk 0:01:31.4]} 35... Ra4 {[%clk 0:01:27.4]} 36. Bxd5 {[%clk 0:01:32.6]}
36... Rxa5 {[%clk 0:01:20.3]} 37. Bxf7+ {[%clk 0:01:19.9]} 37... Kxf7 {[%clk
0:01:20]} 38. Rxd7 {[%clk 0:01:21]} 38... Rxa3 {[%clk 0:01:20.8]} 39. Rxb7
{[%clk 0:01:22.1]} 39... Ra2+ {[%clk 0:01:21.5]} 40. Nc2 {[%clk 0:01:23.5]}
40... h5 {[%clk 0:01:18.7]} 41. Rc7 {[%clk 0:01:21.5]} 41... Ke6 {[%clk
0:01:19.2]} 42. e4 {[%clk 0:01:19]} 42... Rb2 {[%clk 0:01:17.7]} 43. Ra7 {[%clk
0:01:14.6]} 43... Rb3 {[%clk 0:01:18]} 44. Ra6+ {[%clk 0:01:15.3]} 44... Kf7
{[%clk 0:01:18.1]} 45. Rd6 {[%clk 0:01:12.9]} 45... h4 {[%clk 0:01:17.4]} 46.
Rd7 {[%clk 0:01:11.2]} 46... h3 {[%clk 0:01:15.6]} 47. g3 {[%clk 0:01:12.1]}
47... Rxg3 {[%clk 0:01:15.4]} 48. Nd4 {[%clk 0:01:03.9]} 48... Rg2+ {[%clk
0:01:15.6]} 49. Ke3 {[%clk 0:01:05.1]} 49... Ke8 {[%clk 0:01:05.3]} 50. Ra7
{[%clk 0:01:06]} 50... Rxh2 {[%clk 0:01:04.8]} 51. e5 {[%clk 0:01:05.6]} 51...
Nf5+ {[%clk 0:00:41.4]} 52. Nxf5 {[%clk 0:01:05.7]} 52... gxf5 {[%clk
0:00:43.3]} 53. Rh7 {[%clk 0:01:05.4]} 53... Kf8 {[%clk 0:00:43.2]} 54. Rh5
{[%clk 0:01:06]} 54... Ra2 {[%clk 0:00:33.8]} 55. Rxf5+ {[%clk 0:01:06.2]} 55...
Kg7 {[%clk 0:00:30.6]} 56. Rh5 {[%clk 0:01:07]} 56... Kg6 {[%clk 0:00:31.1]} 57.
Rh8 {[%clk 0:01:08]} 57... Kf5 {[%clk 0:00:28.7]} 58. Rf8+ {[%clk 0:01:04.5]}
58... Kg4 {[%clk 0:00:29.4]} 59. Rg8+ {[%clk 0:00:56.5]} 59... Kh4 {[%clk
0:00:24.9]} 60. Ke4 {[%clk 0:00:53.7]} 60... Ra1 {[%clk 0:00:22.9]} 61. Kf5
{[%clk 0:00:52]} 61... h2 {[%clk 0:00:22.6]} 62. Rh8+ {[%clk 0:00:53]} 62... Kg3
{[%clk 0:00:23.6]} 63. Rg8+ {[%clk 0:00:52.8]} 63... Kf3 {[%clk 0:00:24.3]} 64.
Rh8 {[%clk 0:00:53.9]} 64... h1=Q {[%clk 0:00:24.1]} 65. Rxh1 {[%clk 0:00:54.5]}
65... Rxh1 {[%clk 0:00:26]} 66. e6 {[%clk 0:00:55.9]} 66... Rh4 {[%clk
0:00:18.1]} 67. e7 {[%clk 0:00:54.1]} 67... Rxf4+ {[%clk 0:00:18.8]} 68. Kg6
{[%clk 0:00:55.7]} 68... Re4 {[%clk 0:00:19.5]} 69. Kf7 {[%clk 0:00:57.2]} 69...
Rf4+ {[%clk 0:00:20.3]} 70. Ke6 {[%clk 0:00:58.3]} 70... Ke3 {[%clk 0:00:19.9]}
71. Kd7 {[%clk 0:00:57.3]} 71... Rd4+ {[%clk 0:00:20.4]} 72. Ke8 {[%clk
0:00:18.9]} 72... Kf4 {[%clk 0:00:18.6]} 73. Kf8 {[%clk 0:00:20.8]} 73... Re4
{[%clk 0:00:17.1]} 74. e8=Q {[%clk 0:00:22.7]} 74... Rxe8+ {[%clk 0:00:17.9]}
75. Kxe8 {[%clk 0:00:24.6]} 1/2-1/2